fUSD/lending_fUSD_20250119
["ID","MTS","AMOUNT","RATE_DAILY","PERIOD"]
[349601389,1737323440416,-500.0,0.00020546,2]
[349601390,1737323440425,-500.0,0.00020546,2]
[349601391,1737323440435,-500.0,0.00020546,2]
[349601392,1737323440444,-500.0,0.00020546,2]
[349601394,1737323440453,-500.0,0.00020546,2]
[349601396,1737323440462,-490.46250429,0.00020546,2]
[349601398,1737323440472,-500.0,0.00020546,2]
[349601400,1737323440481,-501.05,0.00020546,2]
[349601402,1737323440491,-500.0,0.00020546,2]
[349601404,1737323440500,-750.32,0.00020546,2]
[349601406,1737323440509,-163.96972046,0.00020546,2]
[349601408,1737323440519,-500.0,0.00020546,2]
[349601409,1737323440528,-500.0,0.00020546,2]
[349601411,1737323440538,-500.0,0.00020546,2]
[349601413,1737323440553,-500.0,0.00020546,2]
[349601415,1737323440564,-500.0,0.00020546,2]
[349601417,1737323440573,-500.0,0.00020546,2]
[349601419,1737323440583,-500.0,0.00020546,2]
[349601422,1737323440593,-500.0,0.00020546,2]
[349601425,1737323440603,-500.0,0.00020546,2]
[349601426,1737323440613,-500.0,0.00020547,2]
[349601429,1737323440623,-510.6,0.00020547,2]
[349601431,1737323440633,-500.0,0.00020547,2]
[349601433,1737323440642,-500.0,0.00020547,2]
[349601435,1737323440652,-500.0,0.00020547,2]
[349601437,1737323440662,-33756.57557833,0.00020547,2]
[349601440,1737323440677,-10374.14799999,0.00020547,2]
[349601442,1737323440692,-27913.69033467,0.00020547,2]
[349601444,1737323440701,-154.77153879,0.00020585,2]
[349601446,1737323440710,-1293.25112995,0.00020608,2]
[349601448,1737323440719,-154.77153879,0.00020705,2]
[349601450,1737323440728,-500.0,0.00020717,2]
[349601452,1737323440737,-616.34,0.00020717,2]
[349601454,1737323440746,-500.0,0.00020717,2]
[349601456,1737323440755,-500.0,0.00020717,2]
[349601458,1737323440764,-663.22,0.00020717,2]
[349601460,1737323440773,-500.0,0.00020717,2]
[349601462,1737323440782,-500.0,0.00020717,2]
[349601464,1737323440791,-778.69,0.00020717,2]
[349601466,1737323440806,-500.0,0.00020717,2]
[349601468,1737323440815,-500.0,0.00020717,2]
[349601470,1737323440823,-500.0,0.00020717,2]
[349601471,1737323440832,-500.0,0.00020717,2]
[349601473,1737323440841,-500.0,0.00020717,2]
[349601475,1737323440850,-500.0,0.00020717,2]
[349601477,1737323440860,-500.0,0.00020717,2]
[349601479,1737323440869,-500.0,0.00020717,2]
[349601481,1737323440877,-500.0,0.00020717,2]
[349601483,1737323440886,-500.0,0.00020717,2]
[349601485,1737323440895,-500.0,0.00020717,2]
[349601487,1737323440904,-500.0,0.00020718,2]
[349601489,1737323440913,-332.115611,0.00020718,2]
[349601490,1737323440922,-451.09213064,0.00020718,2]
[349601492,1737323440931,-500.0,0.00020718,2]
[349601495,1737323440941,-500.0,0.00020718,2]
[349601497,1737323440950,-667.58,0.00020718,2]
[349601498,1737323440960,-538.13,0.00020718,2]
[349601500,1737323440969,-500.0,0.00020718,2]
[349601502,1737323440979,-500.0,0.00020718,2]
[349601504,1737323440988,-1007.53,0.00020718,2]
[349601506,1737323440998,-521.63,0.00020718,2]
[349601508,1737323441007,-1227.58,0.00020718,2]
[349601510,1737323441015,-599.37,0.00020718,2]
[349601512,1737323441025,-500.0,0.00020718,2]
[349601514,1737323441033,-500.0,0.00020718,2]
[349601516,1737323441042,-1208.62,0.00020718,2]
[349601517,1737323441057,-500.0,0.00020718,2]
[349601518,1737323441066,-638.26,0.00020718,2]
[349601519,1737323441075,-500.0,0.00020718,2]
[349601520,1737323441084,-500.0,0.00020718,2]
[349601521,1737323441093,-500.0,0.00020718,2]
[349601522,1737323441102,-500.0,0.00020718,2]
[349601523,1737323441111,-500.0,0.00020718,2]
[349601524,1737323441119,-500.0,0.00020718,2]
[349601525,1737323441128,-500.0,0.00020718,2]
[349601526,1737323441137,-500.0,0.00020718,2]
[349601527,1737323441146,-500.0,0.00020718,2]
[349601528,1737323441156,-500.0,0.00020718,2]
[349601529,1737323441165,-500.0,0.00020718,2]
[349601530,1737323441175,-537.73,0.00020718,2]
[349601532,1737323441185,-500.0,0.00020718,2]
[349601534,1737323441194,-500.0,0.00020719,2]
[349601536,1737323441203,-500.0,0.00020719,2]
[349601538,1737323441212,-535.62,0.00020719,2]
[349601540,1737323441221,-500.0,0.00020719,2]
[349601542,1737323441230,-500.0,0.00020719,2]
[349601544,1737323441239,-500.0,0.00020719,2]
[349601546,1737323441247,-500.0,0.00020719,2]
[349601548,1737323441256,-500.0,0.00020719,2]
[349601550,1737323441265,-500.0,0.00020719,2]
[349601552,1737323441275,-500.0,0.00020719,2]
[349601554,1737323441284,-161.08598477,0.00020719,2]
[349601556,1737323441292,-500.0,0.00020719,2]
[349601558,1737323441308,-500.0,0.00020719,2]
[349601560,1737323441318,-500.0,0.00020719,2]
[349601562,1737323441327,-500.0,0.00020719,2]
[349601564,1737323441336,-500.0,0.00020719,2]
[349601566,1737323441345,-500.0,0.00020719,2]
[349601568,1737323441354,-500.0,0.00020719,2]
[349601570,1737323441365,-500.0,0.00020719,2]
[349601572,1737323441374,-504.24678582,0.00020719,2]
[349601574,1737323441382,-500.0,0.00020719,2]
[349601576,1737323441392,-500.0,0.00020719,2]
[349601578,1737323441404,-500.0,0.00020719,2]
[349601580,1737323441413,-500.0,0.00020719,2]
[349601582,1737323441422,-500.0,0.00020719,2]
[349601584,1737323441431,-500.0,0.00020719,2]
[349601586,1737323441441,-500.0,0.00020719,2]
[349601588,1737323441450,-500.0,0.00020719,2]
[349601590,1737323441458,-500.0,0.00020719,2]
[349601592,1737323441468,-500.0,0.00020719,2]
[349601594,1737323441477,-500.0,0.00020719,2]
[349601596,1737323441486,-500.0,0.00020719,2]
[349601598,1737323441495,-500.0,0.00020719,2]
[349601600,1737323441503,-500.0,0.00020719,2]
[349601602,1737323441512,-500.0,0.00020719,2]
[349601604,1737323441521,-500.0,0.00020719,2]
[349601606,1737323441530,-500.0,0.00020719,2]
[349601608,1737323441538,-500.0,0.00020719,2]
[349601609,1737323441549,-500.0,0.00020719,2]
[349601611,1737323441559,-500.0,0.00020719,2]
[349601614,1737323441568,-500.0,0.00020719,2]
[349601616,1737323441578,-500.0,0.00020719,2]
[349601617,1737323441587,-500.0,0.00020719,2]
[349601619,1737323441596,-500.0,0.00020719,2]
[349601621,1737323441606,-500.0,0.00020719,2]
[349601623,1737323441616,-500.0,0.00020719,2]
[349601626,1737323441625,-500.0,0.00020719,2]
[349601628,1737323441634,-1058.16,0.00020719,2]
[349601630,1737323441643,-500.0,0.00020719,2]
[349601632,1737323441652,-500.0,0.00020719,2]
[349601634,1737323441662,-500.0,0.00020719,2]
[349601636,1737323441671,-500.0,0.00020719,2]
[349601638,1737323441680,-500.0,0.00020719,2]
[349601639,1737323441690,-500.0,0.00020719,2]
[349601641,1737323441699,-500.0,0.00020719,2]
[349601643,1737323441708,-500.0,0.00020719,2]
[349601645,1737323441717,-500.0,0.00020719,2]
[349601647,1737323441726,-200.76555076,0.00020719,2]
[349601649,1737323441735,-500.0,0.00020719,2]
[349601651,1737323441744,-500.0,0.00020719,2]
[349601653,1737323441753,-500.0,0.00020719,2]
[349601655,1737323441763,-500.0,0.00020719,2]
[349601657,1737323441772,-547.03,0.00020719,2]
[349601659,1737323441782,-500.0,0.00020719,2]
[349601661,1737323441792,-500.0,0.00020719,2]
[349601663,1737323441808,-500.0,0.00020719,2]
[349601665,1737323441817,-500.0,0.00020719,2]
[349601667,1737323441826,-500.0,0.00020719,2]
[349601670,1737323441836,-500.0,0.00020719,2]
[349601672,1737323441845,-500.0,0.00020719,2]
[349601674,1737323441854,-500.0,0.00020719,2]
[349601676,1737323441864,-500.0,0.00020719,2]
[349601678,1737323441873,-500.0,0.00020719,2]
[349601679,1737323441883,-579.67,0.00020719,2]
[349601681,1737323441892,-500.0,0.00020719,2]
[349601683,1737323441901,-500.0,0.00020719,2]
[349601686,1737323441910,-500.0,0.00020719,2]
[349601688,1737323441919,-500.0,0.00020719,2]
[349601689,1737323441929,-500.0,0.00020719,2]
[349601691,1737323441938,-1276.73,0.00020719,2]
[349601694,1737323441948,-500.0,0.00020719,2]
[349601696,1737323441956,-500.0,0.00020719,2]
[349601698,1737323441965,-500.0,0.00020719,2]
[349601700,1737323441974,-500.0,0.00020719,2]
[349601701,1737323441984,-500.0,0.00020719,2]
[349601703,1737323441993,-500.0,0.00020719,2]
[349601705,1737323442002,-500.0,0.00020719,2]
[349601707,1737323442011,-500.0,0.00020719,2]
[349601709,1737323442020,-500.0,0.00020719,2]
[349601711,1737323442029,-500.0,0.00020719,2]
[349601713,1737323442038,-293.03414097,0.00020719,2]
[349601715,1737323442049,-718.34,0.00020719,2]
[349601717,1737323442062,-500.0,0.00020719,2]
[349601720,1737323442073,-393.89113276,0.00020719,2]
[349601722,1737323442082,-500.0,0.00020719,2]
[349601723,1737323442091,-500.0,0.00020719,2]
[349601725,1737323442100,-500.0,0.00020719,2]
[349601727,1737323442110,-500.0,0.00020719,2]
[349601729,1737323442119,-500.0,0.00020719,2]
[349601731,1737323442128,-500.0,0.00020719,2]
[349601733,1737323442137,-500.0,0.00020719,2]
[349601735,1737323442146,-500.0,0.00020719,2]
[349601737,1737323442155,-645.04071043,0.00020719,2]
[349601739,1737323442164,-500.0,0.00020719,2]
[349601741,1737323442174,-500.0,0.00020719,2]
[349601743,1737323442183,-500.0,0.00020719,2]
[349601745,1737323442192,-500.0,0.00020719,2]
[349601747,1737323442202,-500.0,0.00020719,2]
[349601749,1737323442211,-510.06874389,0.00020719,2]
[349601751,1737323442220,-500.0,0.00020719,2]
[349601753,1737323442230,-1000.0,0.00020719,2]
[349601755,1737323442239,-155.67112409,0.00020719,2]
[349601757,1737323442249,-500.0,0.00020719,2]
[349601759,1737323442258,-500.0,0.00020719,2]
[349601761,1737323442271,-500.0,0.00020719,2]
[349601764,1737323442282,-502.20713706,0.00020719,2]
[349601766,1737323442292,-500.0,0.00020719,2]
[349601768,1737323442307,-500.0,0.00020719,2]
[349601770,1737323442316,-500.0,0.00020719,2]
[349601772,1737323442325,-500.0,0.00020719,2]
[349601774,1737323442334,-500.0,0.00020719,2]
[349601776,1737323442342,-615.16,0.00020719,2]
[349601778,1737323442351,-500.0,0.00020719,2]
[349601780,1737323442360,-500.0,0.00020719,2]
[349601782,1737323442375,-501.0041657,0.00020719,2]
[349601784,1737323442384,-500.0,0.00020719,2]
[349601786,1737323442393,-500.0,0.00020719,2]
[349601788,1737323442402,-584.03358456,0.00020719,2]
[349601790,1737323442412,-500.0,0.00020719,2]
[349601792,1737323442421,-500.0,0.00020719,2]
[349601794,1737323442430,-500.0,0.00020719,2]
[349601796,1737323442439,-500.0,0.00020719,2]
[349601798,1737323442448,-500.0,0.00020719,2]
[349601799,1737323442458,-500.0,0.00020719,2]
[349601802,1737323442469,-500.0,0.0002072,2]
[349601803,1737323442479,-546.15618534,0.0002072,2]
[349601806,1737323442488,-500.0,0.0002072,2]
[349601807,1737323442497,-196.30096548,0.0002072,2]
[349601810,1737323442507,-600.7623674,0.0002072,2]
[349601812,1737323442516,-500.0,0.0002072,2]
[349601813,1737323442525,-500.0,0.0002072,2]
[349601815,1737323442535,-500.0,0.0002072,2]
[349601817,1737323442544,-500.0,0.0002072,2]
[349601821,1737323442562,-500.0,0.0002072,2]
[349601824,1737323442571,-500.0,0.0002072,2]
[349601826,1737323442580,-792.1,0.0002072,2]
[349601829,1737323442590,-500.0,0.0002072,2]
[349601831,1737323442599,-526.09288813,0.0002072,2]
[349601833,1737323442609,-500.0,0.0002072,2]
[349601836,1737323442618,-500.0,0.0002072,2]
[349601838,1737323442627,-541.41,0.0002072,2]
[349601840,1737323442636,-1293.25112995,0.00020769,2]
[349601843,1737323442645,-363.72353408,0.00020783,2]
[349601846,1737323442654,-437.55,0.00020786,2]
[349601848,1737323442663,-150.0,0.00020786,2]
[349601851,1737323442672,-981.3,0.00020786,2]
[349601854,1737323442682,-300.0,0.00020786,2]
[349601857,1737323442691,-981.3,0.00020786,2]
[349601859,1737323442701,-437.55,0.00020786,2]
[349601861,1737323442710,-150.0,0.00020786,2]
[349601863,1737323442719,-150.0,0.00020786,2]
[349601864,1737323442728,-437.55,0.00020786,2]
[349601865,1737323442737,-150.0,0.00020786,2]
[349601866,1737323442747,-981.3,0.00020786,2]
[349601867,1737323442756,-363.72353408,0.000208,2]
[349601868,1737323442766,-300.44261513,0.00020812,2]
[349601869,1737323442776,-224.98272455,0.00020815,2]
[349601870,1737323442785,-500.0,0.0002082,2]
[349601871,1737323442794,-500.0,0.0002082,2]
[349601872,1737323442810,-500.0,0.0002082,2]
[349601873,1737323442819,-266.53,0.0002082,2]
[349601874,1737323442828,-500.0,0.0002082,2]
[349601875,1737323442837,-500.0,0.0002082,2]
[349601876,1737323442846,-500.0,0.0002082,2]
[349601877,1737323442855,-500.0,0.0002082,2]
[349601878,1737323442865,-588.28801189,0.0002082,2]
[349601879,1737323442874,-500.0,0.0002082,2]
[349601880,1737323442884,-555.51,0.0002082,2]
[349601881,1737323442893,-500.0,0.0002082,2]
[349601882,1737323442903,-500.0,0.0002082,2]
[349601883,1737323442912,-500.0,0.0002082,2]
[349601884,1737323442921,-750.32,0.0002082,2]
[349601885,1737323442931,-500.0,0.0002082,2]
[349601886,1737323442940,-500.0,0.0002082,2]
[349601887,1737323442949,-500.0,0.0002082,2]
[349601888,1737323442958,-500.0,0.0002082,2]
[349601889,1737323442967,-500.0,0.00020821,2]
[349601890,1737323442976,-500.0,0.00020821,2]
[349601891,1737323442985,-500.0,0.00020821,2]
[349601892,1737323442994,-500.0,0.00020821,2]
[349601893,1737323443003,-154.77153879,0.00020824,2]
[349601894,1737323443012,-200.0,0.00020829,2]
[349601895,1737323443021,-200.0,0.00020845,2]
[349601896,1737323443031,-200.0,0.00020846,2]
[349601897,1737323443041,-300.44261513,0.00020847,2]
[349601898,1737323443054,-300.44261513,0.00020859,2]
[349601899,1737323443064,-363.72353408,0.00020865,2]
[349601900,1737323443073,-5000.0,0.00020893,2]
[349601901,1737323443083,-200.0,0.00020898,2]
[349601902,1737323443092,-224.98272455,0.00020898,2]
[349601903,1737323443225,-224.98272455,0.00020898,2]
[349601904,1737323443252,-400.0,0.000209,7]
[349601905,1737323443261,-200.51803796,0.000209,2]
[349601906,1737323443271,-224.98272455,0.00020905,2]
[349601907,1737323443281,-300.44261513,0.00020909,2]
[349601908,1737323443290,-363.72353408,0.0002093,2]
[349601909,1737323443305,-1293.25112995,0.00020931,2]
[349601910,1737323443314,-224.98272455,0.0002094,2]
[349601911,1737323443323,-154.77153879,0.00020944,2]
[349601912,1737323443332,-363.72353408,0.00020944,2]
[349601913,1737323443341,-500.0,0.00020991,2]
[349601914,1737323443351,-616.34,0.00020991,2]
[349601915,1737323443360,-500.0,0.00020991,2]
[349601916,1737323443374,-500.0,0.00020991,2]
[349601917,1737323443384,-663.22,0.00020991,2]
[349601918,1737323443393,-500.0,0.00020991,2]
[349601919,1737323443403,-500.0,0.00020991,2]
[349601920,1737323443412,-778.69,0.00020991,2]
[349601921,1737323443422,-500.0,0.00020991,2]
[349601922,1737323443431,-500.0,0.00020991,2]
[349601923,1737323443440,-500.0,0.00020991,2]
[349601924,1737323443449,-500.0,0.00020991,2]
[349601925,1737323443461,-500.0,0.00020991,2]
[349601926,1737323443470,-500.0,0.00020991,2]
[349601927,1737323443479,-500.0,0.00020991,2]
[349601928,1737323443489,-500.0,0.00020991,2]
[349601929,1737323443498,-500.0,0.00020991,2]
[349601930,1737323443507,-500.0,0.00020992,2]
[349601931,1737323443516,-332.115611,0.00020992,2]
[349601932,1737323443526,-500.0,0.00020992,2]
[349601933,1737323443535,-500.0,0.00020992,2]
[349601934,1737323443544,-667.58,0.00020992,2]
[349601935,1737323443558,-538.13,0.00020992,2]
[349601936,1737323443567,-500.0,0.00020992,2]
[349601937,1737323443577,-500.0,0.00020992,2]
[349601938,1737323443586,-1007.53,0.00020992,2]
[349601939,1737323443595,-1227.58,0.00020992,2]
[349601940,1737323443605,-599.37,0.00020992,2]
[349601941,1737323443614,-500.0,0.00020992,2]
[349601942,1737323443623,-500.0,0.00020992,2]
[349601943,1737323443632,-500.0,0.00020992,2]
[349601944,1737323443641,-1208.62,0.00020992,2]
[349601945,1737323443650,-638.26,0.00020992,2]
[349601946,1737323443659,-500.0,0.00020992,2]
[349601947,1737323443668,-500.0,0.00020992,2]
[349601948,1737323443677,-500.0,0.00020992,2]
[349601949,1737323443687,-500.0,0.00020992,2]
[349601950,1737323443696,-500.0,0.00020992,2]
[349601951,1737323443705,-500.0,0.00020992,2]
[349601952,1737323443713,-500.0,0.00020992,2]
[349601953,1737323443723,-500.0,0.00020992,2]
[349601954,1737323443732,-537.73,0.00020992,2]
[349601955,1737323443741,-500.0,0.00020992,2]
[349601956,1737323443750,-500.0,0.00020993,2]
[349601957,1737323443759,-500.0,0.00020993,2]
[349601958,1737323443769,-333.12,0.00020993,2]
[349601959,1737323443778,-500.0,0.00020993,2]
[349601960,1737323443788,-455.61928855,0.00020993,2]
[349601961,1737323443798,-500.0,0.00020993,2]
[349601962,1737323443811,-500.0,0.00020993,2]
[349601964,1737323443820,-564.02,0.00020993,2]
[349601965,1737323443830,-500.0,0.00020993,2]
[349601966,1737323443839,-389.18978389,0.00020993,2]
[349601967,1737323443848,-500.0,0.00020993,2]
[349601968,1737323443857,-500.0,0.00020993,2]
[349601969,1737323443867,-334.53890083,0.00020993,2]
[349601970,1737323443882,-165.46109917,0.00020993,2]
[349601971,1737323443892,-500.0,0.00020993,2]
[349601972,1737323443902,-161.88190075,0.00020993,2]
[349601973,1737323444030,-156.45995296,0.00019626,2]
[349601974,1737323444039,-500.0,0.00020717,2]
[349601975,1737323444048,-500.0,0.00020719,2]
[349601976,1737323444061,-500.0,0.00020991,2]
[349601977,1737323444071,-338.11809925,0.00020993,2]
[349601978,1737323444081,-457.56639795,0.00020993,2]
[349601979,1737323444119,-42.43360205,0.00020993,2]
[349601980,1737323444128,-500.0,0.00020993,2]
[349601981,1737323444138,-105.72616949,0.00020993,2]
[349601982,1737323444151,-394.27383051,0.00020993,2]
[349601983,1737323444160,-500.0,0.00020993,2]
[349601984,1737323444170,-5.72616949,0.00020993,2]
[349601985,1737323444181,-494.27383051,0.00020993,2]
[349601986,1737323444190,-500.0,0.00020993,2]
[349601987,1737323444199,-1058.16,0.00020993,2]
[349601988,1737323444208,-500.0,0.00020993,2]
[349601989,1737323444217,-500.0,0.00020993,2]
[349601990,1737323444226,-500.0,0.00020993,2]
[349601991,1737323444236,-500.0,0.00020993,2]
[349601992,1737323444245,-500.0,0.00020993,2]
[349601993,1737323444254,-500.0,0.00020993,2]
[349601994,1737323444264,-500.0,0.00020993,2]
[349601995,1737323444273,-500.0,0.00020993,2]
[349601996,1737323444282,-547.03,0.00020993,2]
[349601997,1737323444291,-500.0,0.00020993,2]
[349601998,1737323444304,-500.0,0.00020993,2]
[349601999,1737323444313,-572.47,0.00020993,2]
[349602001,1737323444323,-500.0,0.00020993,2]
[349602003,1737323444333,-500.0,0.00020993,2]
[349602005,1737323444342,-500.0,0.00020993,2]
[349602007,1737323444352,-226.23033069,0.00020993,2]
[349602022,1737323444485,-500.0,0.00020546,2]
[349602024,1737323444495,-500.0,0.00020717,2]
[349602026,1737323444504,-500.0,0.00020718,2]
[349602028,1737323444513,-500.0,0.00020991,2]
[349602029,1737323444522,-500.0,0.00020992,2]
[349602031,1737323444531,-273.76966931,0.00020993,2]
[349602033,1737323444541,-579.67,0.00020993,2]
[349602036,1737323444554,-555.12672468,0.00020993,2]
[349602037,1737323444563,-500.0,0.00020993,2]
[349602039,1737323444572,-500.0,0.00020993,2]
[349602041,1737323444581,-500.0,0.00020993,2]
[349602043,1737323444590,-1276.73,0.00020993,2]
[349602045,1737323444600,-533.48966908,0.00020993,2]
[349602047,1737323444609,-500.0,0.00020993,2]
[349602049,1737323444618,-378.4504887,0.00020993,2]
[349602052,1737323444629,-24.65688809,0.00020993,2]
[349602054,1737323444638,-718.34,0.00020993,2]
[349602056,1737323444647,-500.0,0.00020993,2]
[349602058,1737323444656,-500.0,0.00020993,2]
[349602060,1737323444665,-500.0,0.00020993,2]
[349602061,1737323444674,-500.0,0.00020993,2]
[349602063,1737323444683,-500.0,0.00020993,2]
[349602066,1737323444693,-500.0,0.00020993,2]
[349602067,1737323444703,-1000.0,0.00020993,2]
[349602069,1737323444712,-500.0,0.00020993,2]
[349602071,1737323444722,-500.0,0.00020993,2]
[349602073,1737323444731,-500.0,0.00020993,2]
[349602075,1737323444741,-615.16,0.00020993,2]
[349602077,1737323444751,-500.0,0.00020993,2]
[349602079,1737323444760,-500.0,0.00020993,2]
[349602081,1737323444769,-500.0,0.00020993,2]
[349602083,1737323444779,-500.0,0.00020993,2]
[349602085,1737323444788,-500.0,0.00020994,2]
[349602087,1737323444797,-90.12809439,0.00020994,2]
[349602090,1737323444814,-409.87190561,0.00020994,2]
[349602092,1737323444823,-187.35,0.00020994,2]
[349602093,1737323444832,-202.18604545,0.00020994,2]
[349602095,1737323444842,-500.0,0.00020994,2]
[349602097,1737323444851,-490.09,0.00020994,2]
[349602099,1737323444861,-500.0,0.00020994,2]
[349602101,1737323444871,-753.10204894,0.00020994,2]
[349602102,1737323444887,-38.99795106,0.00020994,2]
[349602103,1737323444898,-271.15205094,0.00020994,2]
[349602104,1737323444910,-228.84794906,0.00020994,2]
[349602105,1737323444920,-500.0,0.00020994,2]
[349602106,1737323444929,-318.55205094,0.00020994,2]
[349602107,1737323444941,-222.85794906,0.00020994,2]
[349602108,1737323444950,-204.16,0.00021,2]
[349602110,1737323444960,-586.97226894,0.00021,7]
[349602113,1737323444971,-213.02773106,0.00021,7]
[349602114,1737323444981,-154.77153879,0.00021063,2]
[349602117,1737323444991,-1293.25112995,0.00021092,2]
[349602119,1737323445002,-531.22548264,0.00021094,2]
[349602121,1737323445012,-500.0,0.00021094,2]
[349602122,1737323445022,-500.0,0.00021094,2]
[349602125,1737323445032,-555.51,0.00021094,2]
[349602127,1737323445042,-500.0,0.00021094,2]
[349602129,1737323445055,-500.0,0.00021094,2]
[349602130,1737323445065,-500.0,0.00021094,2]
[349602133,1737323445075,-750.32,0.00021094,2]
[349602135,1737323445085,-348.8417356,0.00021094,2]
[349602137,1737323445095,-500.0,0.00021094,2]
[349602139,1737323445105,-500.0,0.00021094,2]
[349602141,1737323445114,-500.0,0.00021095,2]
[349602143,1737323445123,-500.0,0.00021095,2]
[349602145,1737323445133,-500.0,0.00021095,2]
[349602147,1737323445142,-500.0,0.00021095,2]
[349602148,1737323445152,-1200.0,0.000211,7]
[349602151,1737323445161,-150.0,0.00021154,2]
[349602152,1737323445171,-200.0,0.00021156,2]
[349602154,1737323445181,-9755.7715,0.00021167,2]
[349602157,1737323445191,-154.77153879,0.00021183,2]
[349602159,1737323445202,-1700.0,0.000212,7]
[349602161,1737323445212,-1293.25112995,0.00021254,2]
[349602162,1737323445222,-150.72545667,0.00021265,2]
[349602164,1737323445232,-616.34,0.00021265,2]
[349602166,1737323445241,-500.0,0.00021265,2]
[349602168,1737323445251,-500.0,0.00021265,2]
[349602170,1737323445260,-454.69846046,0.00021265,2]
[349602181,1737323445388,-208.52153954,0.00021265,2]
[349602183,1737323445398,-500.0,0.00021265,2]
[349602185,1737323445408,-500.0,0.00021265,2]
[349602187,1737323445419,-778.69,0.00021265,2]
[349602189,1737323445429,-306.26846047,0.00021265,2]
[349602233,1737323445734,-1000.0,0.00020447,2]
[349602236,1737323445745,-500.0,0.00020546,2]
[349602238,1737323445754,-500.0,0.00020546,2]
[349602240,1737323445764,-357.241392,0.00020717,2]
[349602242,1737323445775,-260.4586083,0.00020717,2]
[349602244,1737323445786,-350.5613917,0.00020717,2]
[349602246,1737323445796,-500.0,0.00020718,2]
[349602248,1737323445813,-500.0,0.00020718,2]
[349602250,1737323445823,-500.0,0.00020719,2]
[349602252,1737323445833,-156.45995296,0.00020763,2]
[349602254,1737323445842,-357.241392,0.00020991,2]
[349602256,1737323445852,-519.27928559,0.00020992,2]
[349602259,1737323445864,-34.06071441,0.00020992,2]
[349602261,1737323445873,-193.73153953,0.00021265,2]
[349602263,1737323445882,-500.0,0.00021265,2]
[349602265,1737323445892,-40.25774794,0.00021265,2]
[349602284,1737323446073,-459.74225206,0.00021265,2]
[349602286,1737323446084,-500.0,0.00021265,2]
[349602288,1737323446094,-500.0,0.00021265,2]
[349602290,1737323446105,-500.0,0.00021265,2]
[349602292,1737323446116,-500.0,0.00021265,2]
[349602294,1737323446137,-357.33999999,0.00021265,2]
[349602296,1737323446152,-500.0,0.00021265,2]
[349602297,1737323446162,-500.0,0.00021265,2]
[349602299,1737323446172,-357.241392,0.00021265,2]
[349602302,1737323446181,-500.0,0.00021266,2]
[349602303,1737323446191,-500.0,0.00021266,2]
[349602305,1737323446200,-667.58,0.00021266,2]
[349602307,1737323446209,-538.13,0.00021266,2]
[349602309,1737323446218,-500.0,0.00021266,2]
[349602311,1737323446228,-500.0,0.00021266,2]
[349602313,1737323446238,-1007.53,0.00021266,2]
[349602316,1737323446248,-1227.58,0.00021266,2]
[349602318,1737323446257,-599.37,0.00021266,2]
[349602320,1737323446267,-500.0,0.00021266,2]